[Event "*** Titled Tuesday Blitz"]
[Site "Chess.com"]
[Date "2020.05.19"]
[Round "4"]
[White "Tacticusbd"]
[Black "Lucas_Tomiello"]
[Result "1-0"]
[WhiteElo "2405"]
[BlackElo "2185"]
[TimeControl "180+1"]
[EndTime "12:40:09 PDT"]
[Termination "Tacticusbd won by resignation"]

1. e4 {[%clk 0:03:00.9]} 1... c5 {[%clk 0:02:59.9]} 2. b3 {[%clk 0:03:00.2]}
2... Nc6 {[%clk 0:02:59.2]} 3. Bb2 {[%clk 0:02:59.9]} 3... e5 {[%clk 0:02:59.6]}
4. Bb5 {[%clk 0:02:58.7]} 4... d6 {[%clk 0:02:59]} 5. Bxc6+ {[%clk 0:02:58.3]}
5... bxc6 {[%clk 0:02:59.3]} 6. Ne2 {[%clk 0:02:59.2]} 6... Nf6 {[%clk
0:02:43.9]} 7. O-O {[%clk 0:02:58.8]} 7... Nxe4 {[%clk 0:02:36]} 8. f4 {[%clk
0:02:56.8]} 8... Be7 {[%clk 0:02:30.9]} 9. fxe5 {[%clk 0:02:52.9]} 9... d5
{[%clk 0:02:22.9]} 10. d3 {[%clk 0:02:48.5]} 10... Ng5 {[%clk 0:02:20.5]} 11.
Nf4 {[%clk 0:02:46.6]} 11... O-O {[%clk 0:02:19.7]} 12. Nd2 {[%clk 0:02:45.2]}
12... Ne6 {[%clk 0:02:15.7]} 13. Nh5 {[%clk 0:02:43.8]} 13... Bg5 {[%clk
0:02:09.2]} 14. Nf3 {[%clk 0:02:30.5]} 14... Be3+ {[%clk 0:01:56.2]} 15. Kh1
{[%clk 0:02:28.3]} 15... Nf4 {[%clk 0:01:55.4]} 16. Qe1 {[%clk 0:02:13.3]} 16...
Nxh5 {[%clk 0:01:23.2]} 17. Qxe3 {[%clk 0:02:11.8]} 17... d4 {[%clk 0:01:14.5]}
18. Qe4 {[%clk 0:02:05.2]} 18... f5 {[%clk 0:00:59.9]} 19. Qxc6 {[%clk
0:02:00.5]} 19... Qe7 {[%clk 0:00:54.9]} 20. Ba3 {[%clk 0:01:57.5]} 20... Bb7
{[%clk 0:00:54.6]} 21. Qxc5 {[%clk 0:01:55]} 21... Qxc5 {[%clk 0:00:54.4]} 22.
Bxc5 {[%clk 0:01:53.4]} 22... Rfc8 {[%clk 0:00:55]} 23. b4 {[%clk 0:01:52.6]}
23... a5 {[%clk 0:00:53.8]} 24. a3 {[%clk 0:01:51.1]} 24... Nf4 {[%clk
0:00:49.8]} 25. Nxd4 {[%clk 0:01:20.9]} 25... Bxg2+ {[%clk 0:00:45.1]} 26. Kg1
{[%clk 0:01:19.9]} 26... Bxf1 {[%clk 0:00:45.4]} 27. Rxf1 {[%clk 0:01:18.6]}
27... Nd5 {[%clk 0:00:45.7]} 28. c4 {[%clk 0:01:10.5]} 28... axb4 {[%clk
0:00:41.4]} 29. axb4 {[%clk 0:01:09]} 29... Ne3 {[%clk 0:00:34.2]} 30. Rf3
{[%clk 0:01:03.5]} 30... Ra1+ {[%clk 0:00:33.6]} 31. Kf2 {[%clk 0:01:02.4]}
31... Ng4+ {[%clk 0:00:33.6]} 32. Kg3 {[%clk 0:01:01.4]} 32... Nxe5 {[%clk
0:00:30.1]} 33. Re3 {[%clk 0:00:55.7]} 33... Ng6 {[%clk 0:00:25.6]} 34. Nxf5
{[%clk 0:00:54.4]} 34... h5 {[%clk 0:00:19.6]} 35. Re6 {[%clk 0:00:48]} 35...
Kh7 {[%clk 0:00:17.4]} 36. Rxg6 {[%clk 0:00:45.5]} 36... Rg1+ {[%clk 0:00:11.8]}
37. Bxg1 {[%clk 0:00:43.8]} 1-0

[Event "*** Titled Tuesday Blitz"]
[Site "Chess.com"]
[Date "2020.05.19"]
[Round "4"]
[White "Hikaru"]
[Black "Igrok3069"]
[Result "1-0"]
[WhiteElo "3189"]
[BlackElo "2765"]
[TimeControl "180+1"]
[EndTime "12:40:10 PDT"]
[Termination "Hikaru won on time"]

1. Nf3 {[%clk 0:02:59.3]} 1... d5 {[%clk 0:02:59.5]} 2. b3 {[%clk 0:02:56.1]}
2... Bg4 {[%clk 0:02:57.8]} 3. Bb2 {[%clk 0:02:52.5]} 3... Nd7 {[%clk
0:02:56.1]} 4. e3 {[%clk 0:02:52.3]} 4... e6 {[%clk 0:02:55.2]} 5. h3 {[%clk
0:02:49.8]} 5... Bh5 {[%clk 0:02:51.3]} 6. d3 {[%clk 0:02:38]} 6... c6 {[%clk
0:02:45.3]} 7. Nbd2 {[%clk 0:02:37.3]} 7... Qc7 {[%clk 0:02:45]} 8. g4 {[%clk
0:02:36.9]} 8... Bg6 {[%clk 0:02:44.1]} 9. Nh4 {[%clk 0:02:37.3]} 9... O-O-O
{[%clk 0:02:16.8]} 10. a3 {[%clk 0:02:34.9]} 10... e5 {[%clk 0:02:10.8]} 11. Bg2
{[%clk 0:02:34.6]} 11... Ngf6 {[%clk 0:01:55.2]} 12. Qe2 {[%clk 0:02:33.7]}
12... Bd6 {[%clk 0:01:50.8]} 13. O-O-O {[%clk 0:02:30.6]} 13... Nc5 {[%clk
0:01:46.5]} 14. Kb1 {[%clk 0:02:28.9]} 14... Rhe8 {[%clk 0:01:45.6]} 15. g5
{[%clk 0:02:23.5]} 15... Nfd7 {[%clk 0:01:43]} 16. Nxg6 {[%clk 0:02:20.2]} 16...
hxg6 {[%clk 0:01:41.8]} 17. h4 {[%clk 0:02:20.1]} 17... Kb8 {[%clk 0:01:40.6]}
18. c4 {[%clk 0:02:12.9]} 18... d4 {[%clk 0:01:38.8]} 19. b4 {[%clk 0:02:06]}
19... Na4 {[%clk 0:01:37.8]} 20. c5 {[%clk 0:02:06.3]} 20... Bxc5 {[%clk
0:01:31.3]} 21. bxc5 {[%clk 0:02:05]} 21... Ndxc5 {[%clk 0:01:31.4]} 22. Ne4
{[%clk 0:01:26.1]} 22... Qb6 {[%clk 0:01:19.4]} 23. Ka1 {[%clk 0:01:24.9]} 23...
Nb3+ {[%clk 0:00:36.1]} 24. Ka2 {[%clk 0:01:23.8]} 24... Rd5 {[%clk 0:00:36.2]}
25. Rb1 {[%clk 0:01:04.3]} 25... Rb5 {[%clk 0:00:35.2]} 26. Nd6 {[%clk
0:00:47.2]} 26... Rc5 {[%clk 0:00:03.1]} 27. Nc4 {[%clk 0:00:25.6]} 27... Qb5
{[%clk 0:00:02.5]} 28. Qc2 {[%clk 0:00:25.6]} 1-0

[Event "*** Titled Tuesday Blitz"]
[Site "Chess.com"]
[Date "2020.05.19"]
[Round "4"]
[White "marszach123"]
[Black "sergeikim"]
[Result "1-0"]
[WhiteElo "2202"]
[BlackElo "2390"]
[TimeControl "180+1"]
[EndTime "12:40:10 PDT"]
[Termination "marszach123 won by resignation"]

1. e4 {[%clk 0:03:00.9]} 1... e5 {[%clk 0:02:59.8]} 2. Nf3 {[%clk 0:03:01.2]}
2... Nc6 {[%clk 0:03:00.2]} 3. Bb5 {[%clk 0:03:01.6]} 3... a6 {[%clk 0:03:00.5]}
4. Ba4 {[%clk 0:03:00.2]} 4... Nf6 {[%clk 0:03:00.4]} 5. O-O {[%clk 0:03:00.6]}
5... b5 {[%clk 0:03:00.3]} 6. Bb3 {[%clk 0:03:00.3]} 6... Bc5 {[%clk 0:03:00.8]}
7. c3 {[%clk 0:02:58.7]} 7... d6 {[%clk 0:03:00.4]} 8. d4 {[%clk 0:02:57.2]}
8... Bb6 {[%clk 0:03:00.4]} 9. Be3 {[%clk 0:02:56.6]} 9... Bg4 {[%clk
0:02:56.9]} 10. d5 {[%clk 0:02:16.1]} 10... Ne7 {[%clk 0:02:53.6]} 11. Bxb6
{[%clk 0:02:14.5]} 11... cxb6 {[%clk 0:02:53.5]} 12. Nbd2 {[%clk 0:02:14.1]}
12... O-O {[%clk 0:02:52]} 13. h3 {[%clk 0:02:13.9]} 13... Bxf3 {[%clk
0:02:43.5]} 14. Qxf3 {[%clk 0:02:12.4]} 14... Nd7 {[%clk 0:02:42.8]} 15. a4
{[%clk 0:01:50.5]} 15... bxa4 {[%clk 0:02:40.6]} 16. Bxa4 {[%clk 0:01:45.1]}
16... b5 {[%clk 0:02:41.5]} 17. Bc2 {[%clk 0:01:42.7]} 17... Nc5 {[%clk
0:02:35]} 18. Ra2 {[%clk 0:01:31.1]} 18... a5 {[%clk 0:02:30.2]} 19. Rfa1 {[%clk
0:01:11]} 19... a4 {[%clk 0:02:28.5]} 20. b3 {[%clk 0:01:11.1]} 20... Qd7 {[%clk
0:02:27.4]} 21. bxa4 {[%clk 0:01:02.6]} 21... bxa4 {[%clk 0:02:25.1]} 22. Nc4
{[%clk 0:01:02]} 22... Rfb8 {[%clk 0:02:22.8]} 23. Qd1 {[%clk 0:00:57.4]} 23...
Ng6 {[%clk 0:02:16.3]} 24. Bxa4 {[%clk 0:00:53.3]} 24... Nxa4 {[%clk 0:02:15.2]}
25. Rxa4 {[%clk 0:00:52.7]} 25... Rxa4 {[%clk 0:02:14.2]} 26. Qxa4 {[%clk
0:00:47.3]} 26... Qc7 {[%clk 0:02:13]} 27. Qc6 {[%clk 0:00:34.3]} 27... Qd8
{[%clk 0:02:08.7]} 28. Qxd6 {[%clk 0:00:33.5]} 28... Qe8 {[%clk 0:02:06.8]} 29.
Ra7 {[%clk 0:00:26.3]} 29... Nf4 {[%clk 0:02:03.2]} 30. Qxe5 {[%clk 0:00:20.5]}
30... Ne2+ {[%clk 0:01:57.7]} 31. Kh2 {[%clk 0:00:18.3]} 31... Qxe5+ {[%clk
0:01:56.4]} 32. Nxe5 {[%clk 0:00:17.5]} 32... Nxc3 {[%clk 0:01:56.5]} 33. f3
{[%clk 0:00:15.3]} 33... Nb5 {[%clk 0:01:52.6]} 34. Rxf7 {[%clk 0:00:13.1]}
34... Re8 {[%clk 0:01:50.9]} 35. Rb7 {[%clk 0:00:12.4]} 35... Nd6 {[%clk
0:01:50.9]} 36. Rd7 {[%clk 0:00:12]} 36... Nc8 {[%clk 0:01:49.3]} 37. Nc6 {[%clk
0:00:10.9]} 37... g5 {[%clk 0:01:47.1]} 38. Rd8 {[%clk 0:00:10.5]} 38... Rxd8
{[%clk 0:01:46.3]} 39. Nxd8 {[%clk 0:00:10.5]} 39... Kf8 {[%clk 0:01:46]} 40.
Kg3 {[%clk 0:00:10.7]} 40... Ke7 {[%clk 0:01:46.4]} 41. Ne6 {[%clk 0:00:10.7]}
41... Kf6 {[%clk 0:01:46]} 42. Kg4 {[%clk 0:00:10.2]} 42... Nd6 {[%clk 0:01:45]}
43. Nxg5 {[%clk 0:00:09.1]} 43... h6 {[%clk 0:01:44]} 44. Ne6 {[%clk 0:00:07.1]}
44... Nc4 {[%clk 0:01:42.9]} 45. f4 {[%clk 0:00:06.7]} 45... Ne3+ {[%clk
0:01:41.6]} 46. Kf3 {[%clk 0:00:06.2]} 46... Nc4 {[%clk 0:01:41]} 47. e5+ {[%clk
0:00:06.3]} 47... Kf5 {[%clk 0:01:40.3]} 48. g4+ {[%clk 0:00:06.7]} 48... Kg6
{[%clk 0:01:39.9]} 49. f5+ {[%clk 0:00:07.1]} 49... Kf7 {[%clk 0:01:39.8]} 50.
Kf4 {[%clk 0:00:06.2]} 50... Nb2 {[%clk 0:01:38.7]} 51. d6 {[%clk 0:00:06.1]}
51... Nd3+ {[%clk 0:01:38.2]} 52. Ke4 {[%clk 0:00:06]} 52... Nf2+ {[%clk
0:01:38.2]} 53. Kd5 {[%clk 0:00:06.4]} 53... Nxh3 {[%clk 0:01:38.6]} 54. d7
{[%clk 0:00:05.1]} 1-0

[Event "*** Titled Tuesday Blitz"]
[Site "Chess.com"]
[Date "2020.05.19"]
[Round "4"]
[White "TurboSteen"]
[Black "Kostya26"]
[Result "1/2-1/2"]
[WhiteElo "1996"]
[BlackElo "2359"]
[TimeControl "180+1"]
[EndTime "12:40:11 PDT"]
[Termination "Game drawn by agreement"]

1. e4 {[%clk 0:02:09.5]} 1... c5 {[%clk 0:02:58.5]} 2. Nc3 {[%clk 0:02:08.2]}
2... Nc6 {[%clk 0:02:58.5]} 3. Bb5 {[%clk 0:02:06.4]} 3... Nd4 {[%clk
0:02:57.8]} 4. Nf3 {[%clk 0:02:06.7]} 4... Nxb5 {[%clk 0:02:57.4]} 5. Nxb5
{[%clk 0:02:05.8]} 5... a6 {[%clk 0:02:58.3]} 6. Nc3 {[%clk 0:02:05.5]} 6... d6
{[%clk 0:02:56.3]} 7. d4 {[%clk 0:02:03.8]} 7... cxd4 {[%clk 0:02:55.7]} 8. Qxd4
{[%clk 0:02:02.3]} 8... Nf6 {[%clk 0:02:55.2]} 9. Bg5 {[%clk 0:02:00.4]} 9... e6
{[%clk 0:02:51.8]} 10. O-O-O {[%clk 0:01:57.3]} 10... Be7 {[%clk 0:02:47.3]} 11.
Rhe1 {[%clk 0:01:32]} 11... Qc7 {[%clk 0:02:31.6]} 12. Bxf6 {[%clk 0:01:18.5]}
12... gxf6 {[%clk 0:02:13.8]} 13. Nh4 {[%clk 0:01:16.8]} 13... Qc5 {[%clk
0:02:04.8]} 14. Qd2 {[%clk 0:01:14.6]} 14... Qg5 {[%clk 0:01:25.3]} 15. Nf3
{[%clk 0:01:12.3]} 15... Qxd2+ {[%clk 0:01:21]} 16. Nxd2 {[%clk 0:01:11.2]}
16... Bd7 {[%clk 0:01:21.8]} 17. Nc4 {[%clk 0:01:09.7]} 17... Bc6 {[%clk
0:01:13.5]} 18. Nxd6+ {[%clk 0:01:07.5]} 18... Bxd6 {[%clk 0:01:13.8]} 19. Rxd6
{[%clk 0:01:05.9]} 19... Ke7 {[%clk 0:01:14.7]} 20. Red1 {[%clk 0:01:03.1]}
20... h5 {[%clk 0:01:08.3]} 21. g3 {[%clk 0:00:56.4]} 21... h4 {[%clk 0:01:08]}
22. f3 {[%clk 0:00:49.2]} 22... hxg3 {[%clk 0:01:03.5]} 23. hxg3 {[%clk
0:00:46.5]} 23... Rh3 {[%clk 0:01:03.2]} 24. Ne2 {[%clk 0:00:40.4]} 24... Rh2
{[%clk 0:00:57.8]} 25. R6d2 {[%clk 0:00:38.3]} 25... Rg8 {[%clk 0:00:54]} 26. g4
{[%clk 0:00:31.2]} 26... f5 {[%clk 0:00:26.9]} 27. gxf5 {[%clk 0:00:19.1]} 27...
exf5 {[%clk 0:00:26.8]} 28. Nd4 {[%clk 0:00:18.9]} 28... Rxd2 {[%clk 0:00:23.5]}
29. Nxf5+ {[%clk 0:00:18]} 29... Kf6 {[%clk 0:00:23.6]} 30. Rxd2 {[%clk
0:00:17.4]} 30... Ke5 {[%clk 0:00:22.9]} 31. Ne7 {[%clk 0:00:15.4]} 1/2-1/2

[Event "*** Titled Tuesday Blitz"]
[Site "Chess.com"]
[Date "2020.05.19"]
[Round "4"]
[White "garfield_pg"]
[Black "PavelChernomordik"]
[Result "0-1"]
[WhiteElo "2152"]
[BlackElo "2391"]
[TimeControl "180+1"]
[EndTime "12:40:12 PDT"]
[Termination "PavelChernomordik won by resignation"]

1. e4 {[%clk 0:03:00.9]} 1... g6 {[%clk 0:02:58]} 2. d4 {[%clk 0:02:58.3]} 2...
Bg7 {[%clk 0:02:57.9]} 3. Nc3 {[%clk 0:02:55.4]} 3... d6 {[%clk 0:02:57.9]} 4.
Bg5 {[%clk 0:02:53.6]} 4... h6 {[%clk 0:02:56.2]} 5. Bh4 {[%clk 0:02:53.2]} 5...
c5 {[%clk 0:02:54.7]} 6. dxc5 {[%clk 0:02:45.9]} 6... Qa5 {[%clk 0:02:54.1]} 7.
Qd2 {[%clk 0:02:34.8]} 7... Qxc5 {[%clk 0:02:53]} 8. Bd3 {[%clk 0:02:26.6]} 8...
a6 {[%clk 0:02:46.7]} 9. Nge2 {[%clk 0:02:26.5]} 9... b5 {[%clk 0:02:35]} 10. a3
{[%clk 0:02:26.1]} 10... Bb7 {[%clk 0:02:33.8]} 11. O-O {[%clk 0:02:26.5]} 11...
Nd7 {[%clk 0:02:32.6]} 12. Kh1 {[%clk 0:02:26.5]} 12... Ngf6 {[%clk 0:02:23.8]}
13. f3 {[%clk 0:02:17.3]} 13... Qc7 {[%clk 0:02:18.4]} 14. Bg3 {[%clk
0:01:54.5]} 14... O-O {[%clk 0:02:10.7]} 15. Rad1 {[%clk 0:01:50.6]} 15... Kh7
{[%clk 0:02:08.9]} 16. Nf4 {[%clk 0:01:50.2]} 16... Nb6 {[%clk 0:02:04]} 17.
Rfe1 {[%clk 0:01:41.8]} 17... e5 {[%clk 0:02:01.1]} 18. Nfd5 {[%clk 0:01:12.9]}
18... Nfxd5 {[%clk 0:01:59.4]} 19. Nxd5 {[%clk 0:01:13.5]} 19... Nxd5 {[%clk
0:01:54.1]} 20. exd5 {[%clk 0:01:13.8]} 20... f5 {[%clk 0:01:54.4]} 21. c3
{[%clk 0:00:54.9]} 21... Bf6 {[%clk 0:01:46.2]} 22. Bb1 {[%clk 0:00:51.7]} 22...
Qf7 {[%clk 0:01:40.5]} 23. Ba2 {[%clk 0:00:42.8]} 23... Rac8 {[%clk 0:01:37.6]}
24. Bf2 {[%clk 0:00:38.5]} 24... Rfe8 {[%clk 0:01:35.3]} 25. Qe3 {[%clk
0:00:38.4]} 25... Rc5 {[%clk 0:01:30.1]} 26. Qe2 {[%clk 0:00:36.2]} 26... Rc7
{[%clk 0:01:27.9]} 27. Bb6 {[%clk 0:00:35.7]} 27... Rce7 {[%clk 0:01:26.4]} 28.
a4 {[%clk 0:00:34.3]} 28... bxa4 {[%clk 0:01:11.1]} 29. Qc4 {[%clk 0:00:33.5]}
29... e4 {[%clk 0:01:06.7]} 30. fxe4 {[%clk 0:00:33.2]} 30... Rxe4 {[%clk
0:01:05.5]} 31. Rxe4 {[%clk 0:00:32.6]} 31... Rxe4 {[%clk 0:01:05.9]} 32. Qc7
{[%clk 0:00:31.6]} 32... Qxc7 {[%clk 0:00:54.7]} 33. Bxc7 {[%clk 0:00:32.5]}
33... Be5 {[%clk 0:00:53.7]} 34. Kg1 {[%clk 0:00:17.1]} 34... Re2 {[%clk
0:00:52.6]} 35. Rb1 {[%clk 0:00:16.9]} 35... a3 {[%clk 0:00:49.5]} 36. Bc4
{[%clk 0:00:15]} 36... Rxb2 {[%clk 0:00:47.7]} 37. Rxb2 {[%clk 0:00:15.1]} 37...
axb2 {[%clk 0:00:46.5]} 38. Ba2 {[%clk 0:00:16]} 38... Bxd5 {[%clk 0:00:45.5]}
0-1

[Event "*** Titled Tuesday Blitz"]
[Site "Chess.com"]
[Date "2020.05.19"]
[Round "4"]
[White "MaxLeto"]
[Black "TST2014"]
[Result "0-1"]
[WhiteElo "2335"]
[BlackElo "2567"]
[TimeControl "180+1"]
[EndTime "12:40:14 PDT"]
[Termination "TST2014 won on time"]

1. g4 {[%clk 0:02:56.7]} 1... d5 {[%clk 0:02:58.7]} 2. Bg2 {[%clk 0:02:55.9]}
2... c6 {[%clk 0:02:58.9]} 3. g5 {[%clk 0:02:55.5]} 3... e5 {[%clk 0:02:58.8]}
4. d4 {[%clk 0:02:55.4]} 4... e4 {[%clk 0:02:57.5]} 5. c4 {[%clk 0:02:52]} 5...
Bd6 {[%clk 0:02:57.4]} 6. Nc3 {[%clk 0:02:49.4]} 6... Ne7 {[%clk 0:02:57.3]} 7.
h4 {[%clk 0:02:34.6]} 7... O-O {[%clk 0:02:43.6]} 8. Nh3 {[%clk 0:02:28.3]} 8...
f5 {[%clk 0:02:39.2]} 9. c5 {[%clk 0:02:08]} 9... Bc7 {[%clk 0:02:37.6]} 10. Bf4
{[%clk 0:02:08.9]} 10... Ng6 {[%clk 0:02:33]} 11. Bxc7 {[%clk 0:01:59.1]} 11...
Qxc7 {[%clk 0:02:32.9]} 12. h5 {[%clk 0:01:55.7]} 12... Nh4 {[%clk 0:02:31.7]}
13. Bf1 {[%clk 0:01:51]} 13... f4 {[%clk 0:02:26.4]} 14. Qd2 {[%clk 0:01:45]}
14... b6 {[%clk 0:02:14]} 15. O-O-O {[%clk 0:01:19.1]} 15... Na6 {[%clk
0:02:07.3]} 16. Na4 {[%clk 0:00:48.1]} 16... bxc5 {[%clk 0:02:02.5]} 17. dxc5
{[%clk 0:00:49]} 17... Rb8 {[%clk 0:01:59.7]} 18. a3 {[%clk 0:00:46.5]} 18...
Qe7 {[%clk 0:01:44.5]} 19. Qc3 {[%clk 0:00:35.4]} 19... Bxh3 {[%clk 0:01:30.9]}
20. Bxh3 {[%clk 0:00:33]} 20... Qxg5 {[%clk 0:01:30.9]} 21. h6 {[%clk
0:00:26.6]} 21... Qxh6 {[%clk 0:01:29.8]} 22. Rdg1 {[%clk 0:00:22.9]} 22... Qf6
{[%clk 0:01:25.6]} 23. Be6+ {[%clk 0:00:18]} 23... Kh8 {[%clk 0:01:21.8]} 24.
Rxh4 {[%clk 0:00:18.2]} 24... d4 {[%clk 0:00:36.5]} 25. Qh3 {[%clk 0:00:14.4]}
25... h6 {[%clk 0:00:36.7]} 26. Qg4 {[%clk 0:00:04.2]} 26... d3 {[%clk
0:00:33.4]} 27. exd3 {[%clk 0:00:04.1]} 27... Nxc5 {[%clk 0:00:32.8]} 28. d4
{[%clk 0:00:02.6]} 28... Qxd4 {[%clk 0:00:27.9]} 29. Rxh6+ {[%clk 0:00:02.2]}
29... gxh6 {[%clk 0:00:26.6]} 0-1

[Event "*** Titled Tuesday Blitz"]
[Site "Chess.com"]
[Date "2020.05.19"]
[Round "4"]
[White "ajdemipopushi"]
[Black "MomchilPetkov"]
[Result "0-1"]
[WhiteElo "2293"]
[BlackElo "2566"]
[TimeControl "180+1"]
[EndTime "12:40:15 PDT"]
[Termination "MomchilPetkov won by checkmate"]

1. Nf3 {[%clk 0:03:00.9]} 1... Nf6 {[%clk 0:02:59.6]} 2. g3 {[%clk 0:03:01.3]}
2... d5 {[%clk 0:02:59.9]} 3. c4 {[%clk 0:03:01.1]} 3... c6 {[%clk 0:03:00.3]}
4. Bg2 {[%clk 0:03:01.4]} 4... Bf5 {[%clk 0:03:00.6]} 5. cxd5 {[%clk 0:03:01.5]}
5... cxd5 {[%clk 0:03:01.5]} 6. Qb3 {[%clk 0:03:01.8]} 6... Nc6 {[%clk
0:03:01.8]} 7. Nc3 {[%clk 0:03:01.7]} 7... e5 {[%clk 0:02:24.3]} 8. Qxb7 {[%clk
0:02:26.5]} 8... Bd7 {[%clk 0:02:22.1]} 9. Nxe5 {[%clk 0:01:24.4]} 9... Nxe5
{[%clk 0:02:08.2]} 10. Nxd5 {[%clk 0:01:23.9]} 10... Nxd5 {[%clk 0:01:49.6]} 11.
Qxd5 {[%clk 0:01:21.3]} 11... Nc6 {[%clk 0:01:49.6]} 12. O-O {[%clk 0:00:56.3]}
12... Be7 {[%clk 0:01:49.6]} 13. d3 {[%clk 0:00:46.9]} 13... O-O {[%clk
0:01:47.9]} 14. Be3 {[%clk 0:00:43]} 14... Rc8 {[%clk 0:01:47.2]} 15. Rac1
{[%clk 0:00:38.9]} 15... Nb4 {[%clk 0:01:40.8]} 16. Rxc8 {[%clk 0:00:30.8]}
16... Qxc8 {[%clk 0:01:41.7]} 17. Qa5 {[%clk 0:00:27.3]} 17... Nc6 {[%clk
0:01:12.2]} 18. Bxc6 {[%clk 0:00:22.6]} 18... Bxc6 {[%clk 0:01:12.3]} 19. Rc1
{[%clk 0:00:21.3]} 19... Qd7 {[%clk 0:01:08.5]} 20. Qxa7 {[%clk 0:00:18.8]}
20... Qd5 {[%clk 0:00:58]} 21. f3 {[%clk 0:00:19]} 21... Bf6 {[%clk 0:00:42.6]}
22. Qc5 {[%clk 0:00:17]} 22... Qe6 {[%clk 0:00:42.7]} 23. Rc2 {[%clk 0:00:11.4]}
23... h5 {[%clk 0:00:33.4]} 24. Kf2 {[%clk 0:00:10.2]} 24... Re8 {[%clk
0:00:30.7]} 25. Qxc6 {[%clk 0:00:05.3]} 25... Qxe3+ {[%clk 0:00:30.4]} 26. Kf1
{[%clk 0:00:05.8]} 26... Bd4 {[%clk 0:00:28.9]} 27. Kg2 {[%clk 0:00:04.8]} 27...
Qg1+ {[%clk 0:00:20.9]} 28. Kh3 {[%clk 0:00:05.1]} 28... Qf1+ {[%clk 0:00:21.3]}
29. Kh4 {[%clk 0:00:05.6]} 29... Bf6+ {[%clk 0:00:21.8]} 30. Kxh5 {[%clk
0:00:03.6]} 30... Qh3# {[%clk 0:00:21.9]} 0-1

[Event "*** Titled Tuesday Blitz"]
[Site "Chess.com"]
[Date "2020.05.19"]
[Round "4"]
[White "tufferguy"]
[Black "JuliaEfremova"]
[Result "0-1"]
[WhiteElo "2360"]
[BlackElo "2106"]
[TimeControl "180+1"]
[EndTime "12:40:15 PDT"]
[Termination "JuliaEfremova won on time"]

1. e4 {[%clk 0:03:00.9]} 1... d5 {[%clk 0:02:58.8]} 2. exd5 {[%clk 0:02:59.9]}
2... Qxd5 {[%clk 0:02:58.8]} 3. Nc3 {[%clk 0:02:59.9]} 3... Qa5 {[%clk
0:02:58.8]} 4. d4 {[%clk 0:02:56.3]} 4... Nf6 {[%clk 0:02:58.3]} 5. Nf3 {[%clk
0:02:36.9]} 5... Bg4 {[%clk 0:02:57.1]} 6. Bd2 {[%clk 0:02:33.9]} 6... Qf5
{[%clk 0:02:50.5]} 7. Be2 {[%clk 0:02:23.6]} 7... Nc6 {[%clk 0:02:49.9]} 8. Bd3
{[%clk 0:01:46.4]} 8... Bxf3 {[%clk 0:02:45.4]} 9. Bxf5 {[%clk 0:01:44.7]} 9...
Bxd1 {[%clk 0:02:45.3]} 10. Rxd1 {[%clk 0:01:44.4]} 10... Nxd4 {[%clk
0:02:43.5]} 11. Bd3 {[%clk 0:01:43.6]} 11... O-O-O {[%clk 0:02:42]} 12. Be3
{[%clk 0:01:42.3]} 12... e6 {[%clk 0:02:37.5]} 13. Bxd4 {[%clk 0:01:37.9]} 13...
Rxd4 {[%clk 0:02:35.8]} 14. Nb5 {[%clk 0:01:38.8]} 14... Rg4 {[%clk 0:02:26.9]}
15. Nxa7+ {[%clk 0:01:26.7]} 15... Kb8 {[%clk 0:02:26.6]} 16. Nb5 {[%clk
0:01:25.1]} 16... Bc5 {[%clk 0:02:26.4]} 17. O-O {[%clk 0:01:20.1]} 17... Nd5
{[%clk 0:02:23.4]} 18. c4 {[%clk 0:01:08.9]} 18... Nf4 {[%clk 0:02:22.1]} 19. g3
{[%clk 0:00:58.3]} 19... h5 {[%clk 0:02:18.9]} 20. Kh1 {[%clk 0:00:49]} 20...
Nxd3 {[%clk 0:02:17.6]} 21. Rxd3 {[%clk 0:00:49.9]} 21... Rxc4 {[%clk 0:02:15]}
22. Rd7 {[%clk 0:00:49.6]} 22... h4 {[%clk 0:02:02.6]} 23. Rxf7 {[%clk
0:00:47.2]} 23... hxg3 {[%clk 0:02:02.4]} 24. fxg3 {[%clk 0:00:36.9]} 24... Rc2
{[%clk 0:02:01.3]} 25. h4 {[%clk 0:00:35.2]} 25... Rxb2 {[%clk 0:01:50]} 26.
Nxc7 {[%clk 0:00:33.9]} 26... Bd6 {[%clk 0:01:37.7]} 27. Nxe6 {[%clk 0:00:21.2]}
27... Bxg3 {[%clk 0:01:35.1]} 28. Rf8+ {[%clk 0:00:21.1]} 28... Rxf8 {[%clk
0:01:34.1]} 29. Rxf8+ {[%clk 0:00:22]} 29... Ka7 {[%clk 0:01:34.6]} 30. h5
{[%clk 0:00:21.4]} 30... Be5 {[%clk 0:01:32.5]} 31. Rf5 {[%clk 0:00:20.4]} 31...
Bc3 {[%clk 0:01:19]} 32. a4 {[%clk 0:00:16.9]} 32... Re2 {[%clk 0:01:14.9]} 33.
Nc5 {[%clk 0:00:15.1]} 33... Re5 {[%clk 0:01:08.9]} 34. Rxe5 {[%clk 0:00:15.4]}
34... Bxe5 {[%clk 0:01:09.8]} 35. Nb3 {[%clk 0:00:15.6]} 35... Kb6 {[%clk
0:01:08.6]} 36. Kg2 {[%clk 0:00:16]} 36... Kc6 {[%clk 0:01:08.9]} 37. Kf3 {[%clk
0:00:16.5]} 37... Kd5 {[%clk 0:01:09.3]} 38. Kg4 {[%clk 0:00:13.8]} 38... b6
{[%clk 0:01:07.1]} 39. Kg5 {[%clk 0:00:12.3]} 39... Kc4 {[%clk 0:01:06.9]} 40.
Nd2+ {[%clk 0:00:11.5]} 40... Kb4 {[%clk 0:01:06.2]} 41. Nf3 {[%clk 0:00:10.1]}
41... Bc3 {[%clk 0:01:05.1]} 42. Nh4 {[%clk 0:00:06.6]} 42... Kxa4 {[%clk
0:01:04]} 43. Nf5 {[%clk 0:00:07.1]} 43... b5 {[%clk 0:01:02.5]} 44. Ne3 {[%clk
0:00:04.7]} 44... Bd2 {[%clk 0:00:56.7]} 0-1